[Event "*** Titled Tuesday Blitz"]
[Site "Chess.com"]
[Date "2020.04.14"]
[Round "8"]
[White "moro182"]
[Black "rasmussvane"]
[Result "1/2-1/2"]
[WhiteElo "2698"]
[BlackElo "2873"]
[TimeControl "180+1"]
[EndTime "11:30:47 PDT"]
[Termination "Game drawn by agreement"]

1. d4 {[%clk 0:03:00.9]} 1... d5 {[%clk 0:02:59]} 2. Bf4 {[%clk 0:02:58.5]} 2...
Nf6 {[%clk 0:02:58.7]} 3. e3 {[%clk 0:02:58.4]} 3... c5 {[%clk 0:02:59]} 4. dxc5
{[%clk 0:02:59.3]} 4... e6 {[%clk 0:02:56.4]} 5. b4 {[%clk 0:02:58.4]} 5... a5
{[%clk 0:02:55.2]} 6. c3 {[%clk 0:02:58.5]} 6... Bd7 {[%clk 0:02:55.3]} 7. Qb3
{[%clk 0:02:57.8]} 7... b6 {[%clk 0:02:39.1]} 8. Nf3 {[%clk 0:01:58.9]} 8...
bxc5 {[%clk 0:02:24.1]} 9. bxc5 {[%clk 0:01:58.8]} 9... Bxc5 {[%clk 0:02:22.5]}
10. Nbd2 {[%clk 0:01:58.5]} 10... O-O {[%clk 0:02:14.3]} 11. Bd3 {[%clk
0:01:56.3]} 11... Nc6 {[%clk 0:02:02.6]} 12. O-O {[%clk 0:01:51.1]} 12... Re8
{[%clk 0:01:39.6]} 13. e4 {[%clk 0:01:46.5]} 13... h6 {[%clk 0:01:00]} 14. exd5
{[%clk 0:01:09.9]} 14... exd5 {[%clk 0:01:00.5]} 15. Bg3 {[%clk 0:01:00.4]}
15... a4 {[%clk 0:00:58.1]} 16. Qc2 {[%clk 0:00:58.7]} 16... Nh5 {[%clk
0:00:54.7]} 17. Bh7+ {[%clk 0:00:51.9]} 17... Kh8 {[%clk 0:00:54.2]} 18. Bf5
{[%clk 0:00:52.8]} 18... Nxg3 {[%clk 0:00:52.1]} 19. hxg3 {[%clk 0:00:52.6]}
19... Qc7 {[%clk 0:00:42.2]} 20. Rad1 {[%clk 0:00:51.2]} 20... Bxf5 {[%clk
0:00:33.3]} 21. Qxf5 {[%clk 0:00:52.1]} 21... Rad8 {[%clk 0:00:33.5]} 22. c4
{[%clk 0:00:28.4]} 22... Kg8 {[%clk 0:00:26.5]} 23. cxd5 {[%clk 0:00:26.4]}
23... Ne7 {[%clk 0:00:26.5]} 24. Qg4 {[%clk 0:00:26.7]} 24... Rxd5 {[%clk
0:00:18.8]} 25. Ne4 {[%clk 0:00:24.7]} 25... Qb6 {[%clk 0:00:05.6]} 26. Nxc5
{[%clk 0:00:10.5]} 26... Rxc5 {[%clk 0:00:04]} 27. Qxa4 {[%clk 0:00:10.6]} 27...
Rec8 {[%clk 0:00:03.1]} 28. Rfe1 {[%clk 0:00:09.5]} 28... Ng6 {[%clk 0:00:03.5]}
29. Qd4 {[%clk 0:00:09.6]} 29... Qb7 {[%clk 0:00:03.3]} 30. a4 {[%clk
0:00:09.2]} 30... Rc2 {[%clk 0:00:03.3]} 31. Rd2 {[%clk 0:00:09.3]} 31... R2c4
{[%clk 0:00:03]} 32. Qa1 {[%clk 0:00:08.4]} 32... Qa7 {[%clk 0:00:02.2]} 33. Ra2
{[%clk 0:00:08]} 33... Ra8 {[%clk 0:00:02.7]} 34. a5 {[%clk 0:00:08.1]} 34...
Rc5 {[%clk 0:00:03.4]} 35. a6 {[%clk 0:00:07.8]} 35... Rc6 {[%clk 0:00:04]} 36.
Nd4 {[%clk 0:00:06.1]} 36... Rb6 {[%clk 0:00:03.1]} 37. Nf5 {[%clk 0:00:05]}
37... f6 {[%clk 0:00:01.3]} 38. Qd4 {[%clk 0:00:03.3]} 38... Kh7 {[%clk
0:00:01.8]} 39. Qd5 {[%clk 0:00:02.8]} 39... Rxa6 {[%clk 0:00:02.1]} 40. Rxa6
{[%clk 0:00:02.4]} 40... Qxa6 {[%clk 0:00:03]} 41. Qf7 {[%clk 0:00:02.8]} 41...
Ra7 {[%clk 0:00:03.5]} 42. Qe6 {[%clk 0:00:02.5]} 42... Qa5 {[%clk 0:00:04]} 43.
Qe3 {[%clk 0:00:02.1]} 43... Ra6 {[%clk 0:00:03]} 44. Nd4 {[%clk 0:00:02.2]}
44... Qe5 {[%clk 0:00:03.3]} 45. Qxe5 {[%clk 0:00:01.7]} 45... Nxe5 {[%clk
0:00:04.2]} 46. Nf3 {[%clk 0:00:02.3]} 46... Nd3 {[%clk 0:00:04.1]} 47. Rf1
{[%clk 0:00:02.3]} 47... Nc5 {[%clk 0:00:04.6]} 48. Ne1 {[%clk 0:00:02.8]} 48...
Ne4 {[%clk 0:00:05]} 49. Nf3 {[%clk 0:00:03.7]} 49... Ra3 {[%clk 0:00:05.4]} 50.
Ne1 {[%clk 0:00:03.8]} 50... Nd6 {[%clk 0:00:05.8]} 51. Nf3 {[%clk 0:00:04.1]}
51... Ne4 {[%clk 0:00:06.3]} 52. Re1 {[%clk 0:00:04.7]} 52... Nd6 {[%clk
0:00:06]} 53. Rd1 {[%clk 0:00:05]} 53... Nf5 {[%clk 0:00:06.3]} 54. Re1 {[%clk
0:00:05.3]} 54... Kg6 {[%clk 0:00:06.7]} 55. Re2 {[%clk 0:00:05.6]} 55... h5
{[%clk 0:00:07.2]} 56. Kh2 {[%clk 0:00:05.9]} 56... Ra1 {[%clk 0:00:07.7]} 57.
Nh4+ {[%clk 0:00:06.2]} 57... Nxh4 {[%clk 0:00:07.5]} 58. gxh4 {[%clk
0:00:07.1]} 58... Kf5 {[%clk 0:00:07.8]} 59. g3 {[%clk 0:00:07.7]} 59... Ra4
{[%clk 0:00:07.7]} 60. Kg2 {[%clk 0:00:08.1]} 60... g5 {[%clk 0:00:06.8]} 61.
hxg5 {[%clk 0:00:07.4]} 61... fxg5 {[%clk 0:00:07.7]} 1/2-1/2

[Event "*** Titled Tuesday Blitz"]
[Site "Chess.com"]
[Date "2020.04.14"]
[Round "8"]
[White "FeketeBarika"]
[Black "FMOlexandrProhorov"]
[Result "1-0"]
[WhiteElo "2271"]
[BlackElo "2115"]
[TimeControl "180+1"]
[EndTime "11:30:48 PDT"]
[Termination "FeketeBarika won on time"]

1. Nf3 {[%clk 0:03:00.9]} 1... d5 {[%clk 0:02:58.7]} 2. g3 {[%clk 0:03:00.6]}
2... Bg4 {[%clk 0:02:57.4]} 3. Bg2 {[%clk 0:03:00.4]} 3... c6 {[%clk 0:02:57.7]}
4. c4 {[%clk 0:03:00.4]} 4... e6 {[%clk 0:02:57.7]} 5. cxd5 {[%clk 0:02:56.2]}
5... exd5 {[%clk 0:02:57.2]} 6. O-O {[%clk 0:02:56]} 6... Nf6 {[%clk 0:02:56.9]}
7. d3 {[%clk 0:02:56.5]} 7... Be7 {[%clk 0:02:55.9]} 8. Nc3 {[%clk 0:02:56.7]}
8... O-O {[%clk 0:02:55.9]} 9. e4 {[%clk 0:02:55.1]} 9... dxe4 {[%clk
0:02:50.1]} 10. dxe4 {[%clk 0:02:56]} 10... Bb4 {[%clk 0:02:38.1]} 11. e5 {[%clk
0:02:29.3]} 11... Bxc3 {[%clk 0:02:32.2]} 12. bxc3 {[%clk 0:02:26.1]} 12... Nd5
{[%clk 0:02:26.8]} 13. Qb3 {[%clk 0:02:14.5]} 13... Qb6 {[%clk 0:02:23.1]} 14.
c4 {[%clk 0:02:13.8]} 14... Nc7 {[%clk 0:02:04.8]} 15. Be3 {[%clk 0:02:08.8]}
15... Qxb3 {[%clk 0:02:04.6]} 16. axb3 {[%clk 0:02:09.7]} 16... Ne6 {[%clk
0:02:04.7]} 17. h3 {[%clk 0:01:31.2]} 17... Bh5 {[%clk 0:01:59.2]} 18. g4 {[%clk
0:01:28.7]} 18... Bg6 {[%clk 0:01:58.1]} 19. b4 {[%clk 0:01:22.7]} 19... a6
{[%clk 0:01:56.5]} 20. b5 {[%clk 0:01:18.4]} 20... cxb5 {[%clk 0:01:53.4]} 21.
cxb5 {[%clk 0:01:18]} 21... Bd3 {[%clk 0:01:53.1]} 22. Rfc1 {[%clk 0:01:11.1]}
22... Bxb5 {[%clk 0:01:52.8]} 23. Nd4 {[%clk 0:01:10.5]} 23... Nxd4 {[%clk
0:01:50.9]} 24. Bxd4 {[%clk 0:01:11.4]} 24... Nc6 {[%clk 0:01:51.2]} 25. Bc5
{[%clk 0:01:08.7]} 25... Rfe8 {[%clk 0:01:51]} 26. f4 {[%clk 0:01:08.4]} 26...
g6 {[%clk 0:01:42.5]} 27. Kh2 {[%clk 0:01:07.2]} 27... Kg7 {[%clk 0:01:41]} 28.
Kg3 {[%clk 0:01:07]} 28... Rad8 {[%clk 0:01:40.8]} 29. Be4 {[%clk 0:01:02.4]}
29... Rd2 {[%clk 0:01:37.9]} 30. Rd1 {[%clk 0:00:54.1]} 30... Red8 {[%clk
0:01:37.5]} 31. Bd6 {[%clk 0:00:53.2]} 31... Rb2 {[%clk 0:01:31.1]} 32. e6
{[%clk 0:00:42.2]} 32... Rb3+ {[%clk 0:01:24.6]} 33. Kh4 {[%clk 0:00:36.9]}
33... f6 {[%clk 0:01:01.2]} 34. e7 {[%clk 0:00:33.3]} 34... Re8 {[%clk
0:00:55.9]} 35. Bxc6 {[%clk 0:00:23.4]} 35... Bxc6 {[%clk 0:00:55.1]} 36. Ra3
{[%clk 0:00:20.3]} 36... Rb5 {[%clk 0:00:38.5]} 37. Re3 {[%clk 0:00:17.9]} 37...
Kf7 {[%clk 0:00:36.7]} 38. Kg3 {[%clk 0:00:17.4]} 38... Rb2 {[%clk 0:00:32.8]}
39. h4 {[%clk 0:00:15.5]} 39... h6 {[%clk 0:00:31.9]} 40. g5 {[%clk 0:00:15.2]}
40... hxg5 {[%clk 0:00:31.6]} 41. fxg5 {[%clk 0:00:15.5]} 41... f5 {[%clk
0:00:28]} 42. Rde1 {[%clk 0:00:13.7]} 42... Rg2+ {[%clk 0:00:22.7]} 43. Kf4
{[%clk 0:00:12.4]} 43... Rg4+ {[%clk 0:00:21.9]} 44. Ke5 {[%clk 0:00:12.5]}
44... Rxh4 {[%clk 0:00:20.7]} 45. Rc3 {[%clk 0:00:12.2]} 45... f4 {[%clk
0:00:14.2]} 46. Rf1 {[%clk 0:00:11.3]} 46... f3 {[%clk 0:00:13.9]} 47. Rxc6
{[%clk 0:00:09.8]} 47... bxc6 {[%clk 0:00:12.9]} 48. Rxf3+ {[%clk 0:00:10.2]}
48... Kg7 {[%clk 0:00:11.8]} 49. Rf8 {[%clk 0:00:08.3]} 49... Rxe7+ {[%clk
0:00:10.3]} 50. Bxe7 {[%clk 0:00:07.8]} 50... Ra4 {[%clk 0:00:03.7]} 51. Rc8
{[%clk 0:00:07.3]} 51... Ra5+ {[%clk 0:00:03.6]} 52. Kd4 {[%clk 0:00:07.2]}
52... Rd5+ {[%clk 0:00:03]} 53. Kc4 {[%clk 0:00:06.7]} 1-0

[Event "*** Titled Tuesday Blitz"]
[Site "Chess.com"]
[Date "2020.04.14"]
[Round "8"]
[White "crazy_but_lazy"]
[Black "Duong57"]
[Result "1-0"]
[WhiteElo "2408"]
[BlackElo "2219"]
[TimeControl "180+1"]
[EndTime "11:30:49 PDT"]
[Termination "crazy_but_lazy won by checkmate"]

1. d4 {[%clk 0:03:00.9]} 1... d5 {[%clk 0:02:59.1]} 2. c4 {[%clk 0:03:00.3]}
2... e6 {[%clk 0:02:58.9]} 3. Nc3 {[%clk 0:03:00.1]} 3... c6 {[%clk 0:02:58.9]}
4. cxd5 {[%clk 0:02:58]} 4... exd5 {[%clk 0:02:58.7]} 5. Nf3 {[%clk 0:02:58.4]}
5... Bd6 {[%clk 0:02:58]} 6. Bg5 {[%clk 0:02:58.1]} 6... Qb6 {[%clk 0:02:53.8]}
7. Qc2 {[%clk 0:02:53.3]} 7... h6 {[%clk 0:02:53.6]} 8. Bh4 {[%clk 0:02:52.1]}
8... Ne7 {[%clk 0:02:38.2]} 9. e3 {[%clk 0:02:51]} 9... Bf5 {[%clk 0:02:37.5]}
10. Qd2 {[%clk 0:02:27.7]} 10... Nd7 {[%clk 0:02:36.1]} 11. Be2 {[%clk
0:02:25.4]} 11... O-O {[%clk 0:02:32.5]} 12. O-O {[%clk 0:02:24.2]} 12... Rfe8
{[%clk 0:02:31.3]} 13. Bd3 {[%clk 0:02:07.2]} 13... Bxd3 {[%clk 0:02:26.5]} 14.
Qxd3 {[%clk 0:02:08.1]} 14... Ng6 {[%clk 0:02:26.7]} 15. Bg3 {[%clk 0:02:07.8]}
15... Bxg3 {[%clk 0:02:27.3]} 16. hxg3 {[%clk 0:02:08.7]} 16... Nf6 {[%clk
0:02:27.5]} 17. Rab1 {[%clk 0:02:07]} 17... Ne4 {[%clk 0:02:26.8]} 18. Nd2
{[%clk 0:02:05.4]} 18... f5 {[%clk 0:02:20.2]} 19. b4 {[%clk 0:01:57.6]} 19...
Qd8 {[%clk 0:02:18]} 20. b5 {[%clk 0:01:51.9]} 20... Qf6 {[%clk 0:02:17.7]} 21.
bxc6 {[%clk 0:01:48.9]} 21... bxc6 {[%clk 0:02:18.2]} 22. Rb7 {[%clk 0:01:47.6]}
22... Re7 {[%clk 0:02:15.9]} 23. Rfb1 {[%clk 0:01:47.2]} 23... Rae8 {[%clk
0:02:16.3]} 24. Nf3 {[%clk 0:01:29.9]} 24... h5 {[%clk 0:02:05.3]} 25. Ne2
{[%clk 0:01:22.1]} 25... h4 {[%clk 0:02:04.5]} 26. gxh4 {[%clk 0:01:12.1]} 26...
Nxh4 {[%clk 0:02:04.1]} 27. Ne5 {[%clk 0:00:56.1]} 27... Qg5 {[%clk 0:00:34]}
28. Nf4 {[%clk 0:00:56.1]} 28... Nf6 {[%clk 0:00:34.1]} 29. Rxe7 {[%clk
0:00:41.5]} 29... Rxe7 {[%clk 0:00:33.9]} 30. Nxc6 {[%clk 0:00:39.7]} 30... Re4
{[%clk 0:00:25.9]} 31. Rb8+ {[%clk 0:00:20.4]} 31... Kh7 {[%clk 0:00:19.5]} 32.
Ne5 {[%clk 0:00:20.7]} 32... Ng8 {[%clk 0:00:16]} 33. g3 {[%clk 0:00:16.1]}
33... Rxf4 {[%clk 0:00:08.3]} 34. exf4 {[%clk 0:00:15.5]} 34... Qh6 {[%clk
0:00:07.6]} 35. gxh4 {[%clk 0:00:15]} 35... Qxh4 {[%clk 0:00:07.8]} 36. Qg3
{[%clk 0:00:15.2]} 36... Qh6 {[%clk 0:00:07.6]} 37. Kg2 {[%clk 0:00:13.3]} 37...
Qh5 {[%clk 0:00:07.6]} 38. Qh3 {[%clk 0:00:13.4]} 38... Qxh3+ {[%clk 0:00:07.7]}
39. Kxh3 {[%clk 0:00:14.3]} 39... Nf6 {[%clk 0:00:07.9]} 40. Ra8 {[%clk
0:00:13.7]} 40... Ne4 {[%clk 0:00:08.2]} 41. Kg2 {[%clk 0:00:12.4]} 41... Nc3
{[%clk 0:00:08.4]} 42. Rxa7 {[%clk 0:00:12.4]} 42... Ne2 {[%clk 0:00:09]} 43. a4
{[%clk 0:00:11]} 43... Nxd4 {[%clk 0:00:09.3]} 44. a5 {[%clk 0:00:10.5]} 44...
Ne6 {[%clk 0:00:09.6]} 45. Kg3 {[%clk 0:00:10.2]} 45... Nd4 {[%clk 0:00:09.8]}
46. a6 {[%clk 0:00:09.4]} 46... Ne2+ {[%clk 0:00:10.4]} 47. Kh2 {[%clk
0:00:08.9]} 47... Nxf4 {[%clk 0:00:10.1]} 48. Rxg7+ {[%clk 0:00:08.9]} 48...
Kxg7 {[%clk 0:00:09.9]} 49. a7 {[%clk 0:00:09.8]} 49... Kf6 {[%clk 0:00:10.4]}
50. Nf3 {[%clk 0:00:07.9]} 50... Nd3 {[%clk 0:00:09]} 51. a8=Q {[%clk
0:00:08.1]} 51... Nxf2 {[%clk 0:00:09.6]} 52. Qxd5 {[%clk 0:00:06.8]} 52... Ng4+
{[%clk 0:00:10.2]} 53. Kg3 {[%clk 0:00:07.1]} 53... Kg6 {[%clk 0:00:06.9]} 54.
Ne5+ {[%clk 0:00:05.8]} 54... Nxe5 {[%clk 0:00:06.8]} 55. Qxe5 {[%clk
0:00:06.7]} 55... Kg5 {[%clk 0:00:07.3]} 56. Qf4+ {[%clk 0:00:07.3]} 56... Kf6
{[%clk 0:00:07.5]} 57. Kh4 {[%clk 0:00:08.2]} 57... Kg6 {[%clk 0:00:07.5]} 58.
Qg5+ {[%clk 0:00:08.7]} 58... Kh7 {[%clk 0:00:07.9]} 59. Qxf5+ {[%clk
0:00:09.6]} 59... Kh6 {[%clk 0:00:08.1]} 60. Qg5+ {[%clk 0:00:09.7]} 60... Kh7
{[%clk 0:00:08.1]} 61. Kg4 {[%clk 0:00:10.3]} 61... Kh8 {[%clk 0:00:08.2]} 62.
Kf5 {[%clk 0:00:11.2]} 62... Kh7 {[%clk 0:00:08.6]} 63. Kf6 {[%clk 0:00:12.1]}
63... Kh8 {[%clk 0:00:08.8]} 64. Qg7# {[%clk 0:00:12.7]} 1-0

[Event "*** Titled Tuesday Blitz"]
[Site "Chess.com"]
[Date "2020.04.14"]
[Round "8"]
[White "FannyDuarteNapoles"]
[Black "bmt011"]
[Result "1/2-1/2"]
[WhiteElo "2258"]
[BlackElo "2013"]
[TimeControl "180+1"]
[EndTime "11:30:49 PDT"]
[Termination "Game drawn - insufficient material"]

1. c4 {[%clk 0:03:00.5]} 1... c5 {[%clk 0:02:58.6]} 2. Nc3 {[%clk 0:02:48.4]}
2... Nc6 {[%clk 0:02:58.9]} 3. Nf3 {[%clk 0:02:48.4]} 3... g6 {[%clk 0:02:59.3]}
4. e3 {[%clk 0:02:48.6]} 4... Bg7 {[%clk 0:02:52.4]} 5. d4 {[%clk 0:02:48.7]}
5... Nf6 {[%clk 0:02:39.3]} 6. d5 {[%clk 0:02:48.3]} 6... Nb8 {[%clk 0:02:37.1]}
7. e4 {[%clk 0:02:49.2]} 7... d6 {[%clk 0:02:36.7]} 8. h3 {[%clk 0:02:48.6]}
8... a6 {[%clk 0:02:28.1]} 9. a4 {[%clk 0:02:47.3]} 9... Nbd7 {[%clk 0:02:27]}
10. Bd3 {[%clk 0:02:47.2]} 10... O-O {[%clk 0:02:23.9]} 11. O-O {[%clk
0:02:47.1]} 11... e6 {[%clk 0:02:22.6]} 12. dxe6 {[%clk 0:02:44.8]} 12... fxe6
{[%clk 0:02:21.9]} 13. Bf4 {[%clk 0:02:45.3]} 13... Nxe4 {[%clk 0:02:12.9]} 14.
Nxe4 {[%clk 0:02:43.5]} 14... Rxf4 {[%clk 0:02:12.3]} 15. Nxd6 {[%clk
0:02:42.6]} 15... Bxb2 {[%clk 0:02:06.5]} 16. Qd2 {[%clk 0:02:42.6]} 16... Rxf3
{[%clk 0:01:59.2]} 17. gxf3 {[%clk 0:02:35.5]} 17... Bxa1 {[%clk 0:01:44.2]} 18.
Rxa1 {[%clk 0:02:34.1]} 18... Ne5 {[%clk 0:01:44.3]} 19. Be4 {[%clk 0:02:28.4]}
19... Qf6 {[%clk 0:01:31]} 20. Qc3 {[%clk 0:02:17]} 20... Bd7 {[%clk 0:01:27.9]}
21. Rd1 {[%clk 0:02:10.4]} 21... Rf8 {[%clk 0:01:18.1]} 22. a5 {[%clk
0:02:03.1]} 22... Bc6 {[%clk 0:01:07.6]} 23. Qe3 {[%clk 0:01:37.4]} 23... Nxf3+
{[%clk 0:00:54.9]} 24. Qxf3 {[%clk 0:01:30.5]} 24... Qxf3 {[%clk 0:00:49.8]} 25.
Bxf3 {[%clk 0:01:30.5]} 25... Rxf3 {[%clk 0:00:46.7]} 26. Nc8 {[%clk 0:00:50.4]}
26... Kf7 {[%clk 0:00:32.4]} 27. Na7 {[%clk 0:00:40.9]} 27... Be4 {[%clk
0:00:19.8]} 28. Re1 {[%clk 0:00:40.7]} 28... Bd3 {[%clk 0:00:20.1]} 29. Nc8
{[%clk 0:00:34.7]} 29... Rxh3 {[%clk 0:00:15.4]} 30. Kg2 {[%clk 0:00:29.3]}
30... Rh4 {[%clk 0:00:15]} 31. Kg3 {[%clk 0:00:28.7]} 31... Rd4 {[%clk
0:00:15.1]} 32. Rd1 {[%clk 0:00:22.9]} 32... Bxc4 {[%clk 0:00:14.5]} 33. Rxd4
{[%clk 0:00:21.3]} 33... cxd4 {[%clk 0:00:15.4]} 34. Nd6+ {[%clk 0:00:21.9]}
34... Ke7 {[%clk 0:00:14.6]} 35. Nxc4 {[%clk 0:00:21.9]} 35... Kd7 {[%clk
0:00:15.1]} 36. Kf3 {[%clk 0:00:21.5]} 36... Kc6 {[%clk 0:00:15.6]} 37. Ke4
{[%clk 0:00:21.9]} 37... Kc5 {[%clk 0:00:16.1]} 38. Ne5 {[%clk 0:00:14]} 38...
Kb5 {[%clk 0:00:16.6]} 39. Kxd4 {[%clk 0:00:13.2]} 39... Kxa5 {[%clk 0:00:17.1]}
40. Nf7 {[%clk 0:00:13]} 40... Kb4 {[%clk 0:00:16]} 41. Kd3 {[%clk 0:00:10.3]}
41... Kb3 {[%clk 0:00:15.7]} 42. Kd4 {[%clk 0:00:10.1]} 42... b5 {[%clk
0:00:15.7]} 43. Ng5 {[%clk 0:00:09.5]} 43... a5 {[%clk 0:00:15.1]} 44. Nxe6
{[%clk 0:00:09.7]} 44... a4 {[%clk 0:00:15.6]} 45. Nc5+ {[%clk 0:00:09.9]} 45...
Kb4 {[%clk 0:00:15.9]} 46. Nd3+ {[%clk 0:00:10.1]} 46... Kb3 {[%clk 0:00:16.5]}
47. Nc1+ {[%clk 0:00:06.9]} 47... Kc2 {[%clk 0:00:16.1]} 48. Na2 {[%clk
0:00:06.2]} 48... Kb2 {[%clk 0:00:15.3]} 49. Nb4 {[%clk 0:00:06.1]} 49... a3
{[%clk 0:00:15.9]} 50. Kc5 {[%clk 0:00:06.2]} 50... a2 {[%clk 0:00:16.1]} 51.
Nxa2 {[%clk 0:00:05.3]} 51... Kxa2 {[%clk 0:00:16.6]} 52. Kxb5 {[%clk
0:00:05.8]} 52... Kb2 {[%clk 0:00:16.8]} 53. Kc4 {[%clk 0:00:06.7]} 53... Kc2
{[%clk 0:00:17.2]} 54. Kd4 {[%clk 0:00:07.2]} 54... Kd2 {[%clk 0:00:17.3]} 55.
f4 {[%clk 0:00:07.9]} 55... Ke2 {[%clk 0:00:17.3]} 56. Ke5 {[%clk 0:00:08.3]}
56... Kf3 {[%clk 0:00:16.4]} 57. f5 {[%clk 0:00:08.7]} 57... gxf5 {[%clk
0:00:16.6]} 58. Kxf5 {[%clk 0:00:08.9]} 58... h5 {[%clk 0:00:17.2]} 59. Kg5
{[%clk 0:00:09.4]} 59... h4 {[%clk 0:00:16.1]} 60. Kxh4 {[%clk 0:00:09.7]}
1/2-1/2

[Event "*** Titled Tuesday Blitz"]
[Site "Chess.com"]
[Date "2020.04.14"]
[Round "8"]
[White "LittlePeasant"]
[Black "Oleksandr_Bortnyk"]
[Result "1/2-1/2"]
[WhiteElo "2834"]
[BlackElo "3036"]
[TimeControl "180+1"]
[EndTime "11:30:52 PDT"]
[Termination "Game drawn - insufficient material"]

1. d4 {[%clk 0:03:00.9]} 1... d6 {[%clk 0:02:59.9]} 2. Nf3 {[%clk 0:03:00.8]}
2... Nf6 {[%clk 0:02:59.8]} 3. g3 {[%clk 0:03:00.9]} 3... g6 {[%clk 0:03:00.3]}
4. Bg2 {[%clk 0:03:01.3]} 4... Bg7 {[%clk 0:03:01.2]} 5. c4 {[%clk 0:03:01.8]}
5... O-O {[%clk 0:03:02.1]} 6. Nc3 {[%clk 0:03:02.1]} 6... Bf5 {[%clk
0:03:02.6]} 7. O-O {[%clk 0:03:02.2]} 7... Ne4 {[%clk 0:03:03]} 8. Nd5 {[%clk
0:03:00.9]} 8... c6 {[%clk 0:02:52.5]} 9. Ne3 {[%clk 0:03:00.7]} 9... Be6 {[%clk
0:02:52.8]} 10. d5 {[%clk 0:02:45.3]} 10... cxd5 {[%clk 0:02:53.7]} 11. cxd5
{[%clk 0:02:45.9]} 11... Bd7 {[%clk 0:02:52.2]} 12. Nd4 {[%clk 0:02:46.3]} 12...
Nc5 {[%clk 0:02:50.6]} 13. b3 {[%clk 0:02:32.5]} 13... a6 {[%clk 0:02:42.5]} 14.
Bb2 {[%clk 0:02:26.7]} 14... a5 {[%clk 0:02:33.7]} 15. Rc1 {[%clk 0:02:22.6]}
15... a4 {[%clk 0:02:26.3]} 16. b4 {[%clk 0:02:19.4]} 16... a3 {[%clk
0:02:26.7]} 17. Ba1 {[%clk 0:02:03.2]} 17... Na4 {[%clk 0:02:27]} 18. Qb3 {[%clk
0:01:56.9]} 18... Nb2 {[%clk 0:02:27.2]} 19. Bxb2 {[%clk 0:01:47.7]} 19... axb2
{[%clk 0:02:28.1]} 20. Qxb2 {[%clk 0:01:48.6]} 20... Qb6 {[%clk 0:02:11]} 21.
Rfd1 {[%clk 0:01:47.5]} 21... Na6 {[%clk 0:02:11.4]} 22. a3 {[%clk 0:01:44.9]}
22... Ba4 {[%clk 0:02:04.3]} 23. Rd2 {[%clk 0:01:37.6]} 23... Rfc8 {[%clk
0:02:02.5]} 24. Nc4 {[%clk 0:01:33.2]} 24... Qa7 {[%clk 0:01:59]} 25. e3 {[%clk
0:01:32.5]} 25... Nc7 {[%clk 0:01:40.3]} 26. Bh3 {[%clk 0:01:14.2]} 26... f5
{[%clk 0:01:25.3]} 27. Bg2 {[%clk 0:01:11.6]} 27... Nb5 {[%clk 0:01:22.4]} 28.
Nxb5 {[%clk 0:00:54.5]} 28... Bxb5 {[%clk 0:00:39.2]} 29. Qb3 {[%clk 0:00:54.8]}
29... Rc7 {[%clk 0:00:31.3]} 30. Rdc2 {[%clk 0:00:50.4]} 30... Ba4 {[%clk
0:00:29.7]} 31. Qd3 {[%clk 0:00:36.7]} 31... Bxc2 {[%clk 0:00:29.4]} 32. Rxc2
{[%clk 0:00:37.6]} 32... Rac8 {[%clk 0:00:13.6]} 33. b5 {[%clk 0:00:38.1]} 33...
Qa4 {[%clk 0:00:13.8]} 34. Bf1 {[%clk 0:00:26.1]} 34... Qxb5 {[%clk 0:00:14]}
35. e4 {[%clk 0:00:26.7]} 35... fxe4 {[%clk 0:00:07.5]} 36. Qxe4 {[%clk
0:00:26.8]} 36... Qb1 {[%clk 0:00:04.6]} 37. Kg2 {[%clk 0:00:14]} 37... Bf6
{[%clk 0:00:02.7]} 38. Bd3 {[%clk 0:00:14.3]} 38... Qb3 {[%clk 0:00:02.1]} 39.
h4 {[%clk 0:00:11.4]} 39... Kg7 {[%clk 0:00:02.1]} 40. h5 {[%clk 0:00:11.8]}
40... Rxc4 {[%clk 0:00:01.8]} 41. Rxc4 {[%clk 0:00:11]} 41... Rxc4 {[%clk
0:00:02]} 42. Bxc4 {[%clk 0:00:11.9]} 42... Qxa3 {[%clk 0:00:02.4]} 43. Bd3
{[%clk 0:00:12]} 43... Qa8 {[%clk 0:00:02.1]} 44. Qe3 {[%clk 0:00:12]} 44... Qd8
{[%clk 0:00:02.1]} 45. h6+ {[%clk 0:00:12.4]} 45... Kf8 {[%clk 0:00:02.4]} 46.
Qe6 {[%clk 0:00:12.7]} 46... Qe8 {[%clk 0:00:02.7]} 47. f4 {[%clk 0:00:09]}
47... b5 {[%clk 0:00:02.8]} 48. g4 {[%clk 0:00:09.5]} 48... b4 {[%clk
0:00:03.4]} 49. g5 {[%clk 0:00:10.1]} 49... Bc3 {[%clk 0:00:03.3]} 50. f5 {[%clk
0:00:10.7]} 50... gxf5 {[%clk 0:00:03.1]} 51. Bxf5 {[%clk 0:00:11.6]} 51... Qf7
{[%clk 0:00:02.7]} 52. Qc8+ {[%clk 0:00:11.5]} 52... Qe8 {[%clk 0:00:03.3]} 53.
Qe6 {[%clk 0:00:12]} 53... Qf7 {[%clk 0:00:03.6]} 54. Qxf7+ {[%clk 0:00:03.4]}
54... Kxf7 {[%clk 0:00:04.5]} 55. Bxh7 {[%clk 0:00:04.3]} 55... b3 {[%clk
0:00:04.6]} 56. g6+ {[%clk 0:00:04.8]} 56... Kf8 {[%clk 0:00:05.1]} 57. g7+
{[%clk 0:00:05.7]} 57... Bxg7 {[%clk 0:00:05.4]} 58. hxg7+ {[%clk 0:00:06.6]}
58... Kxg7 {[%clk 0:00:06.3]} 59. Bf5 {[%clk 0:00:06]} 59... Kf6 {[%clk
0:00:06.6]} 60. Be4 {[%clk 0:00:06.2]} 60... Ke5 {[%clk 0:00:05.5]} 61. Kf3
{[%clk 0:00:06.8]} 61... b2 {[%clk 0:00:06]} 62. Ke3 {[%clk 0:00:06.6]} 62... e6
{[%clk 0:00:04.4]} 63. dxe6 {[%clk 0:00:07.5]} 63... Kxe6 {[%clk 0:00:05]} 64.
Bb1 {[%clk 0:00:07.9]} 64... Kd5 {[%clk 0:00:05.2]} 65. Kd3 {[%clk 0:00:08.4]}
65... Kc5 {[%clk 0:00:05.8]} 66. Kc3 {[%clk 0:00:09.2]} 66... d5 {[%clk
0:00:06.7]} 67. Kxb2 {[%clk 0:00:10.1]} 67... Kd4 {[%clk 0:00:07.5]} 68. Kc2
{[%clk 0:00:10.5]} 68... Ke3 {[%clk 0:00:08.4]} 69. Kd1 {[%clk 0:00:11.4]} 69...
d4 {[%clk 0:00:09.3]} 70. Ba2 {[%clk 0:00:12.1]} 70... d3 {[%clk 0:00:09.8]} 71.
Bc4 {[%clk 0:00:12.7]} 71... d2 {[%clk 0:00:10.2]} 72. Bb5 {[%clk 0:00:13.6]}
72... Kd4 {[%clk 0:00:10.6]} 73. Ba4 {[%clk 0:00:14.5]} 73... Kc3 {[%clk
0:00:10.3]} 74. Bc2 {[%clk 0:00:15.4]} 74... Kd4 {[%clk 0:00:10.6]} 75. Kxd2
{[%clk 0:00:16.3]} 1/2-1/2